lending/lending_fUSD_20251021
["ID","MTS","AMOUNT","RATE_DAILY","PERIOD"]
[391934401,1761006639683,-2119613.90620191,0.00015,2]
[391934411,1761006642428,-182.39170878,0.000149,2]
[391934412,1761006642437,-286.48904862,0.00015,2]
[391934413,1761006643596,10000.0,0.00030137,120]
[391934436,1761006645801,-151.47122656,0.000149,2]
[391934437,1761006645812,-11410.22877344,0.00015,2]
[391934463,1761006658415,10000.0,0.00030137,120]
[391934470,1761006841831,160.0,0.000301,120]
[391934471,1761006843315,160.0,0.000301,120]
[391934475,1761006907845,205.59624014,0.00028694,120]
[391934476,1761006939649,500.00000001,0.00030137,120]
[391934482,1761007208609,-196.35735876,0.00013699,2]
[391934483,1761007210746,771.14,0.00027999,120]
[391934484,1761007211019,771.14,0.00029499,120]
[391934488,1761007353746,250.0,0.00030137,120]
[391934491,1761007479395,706.88,0.00027999,120]
[391934492,1761007479507,706.88,0.00029499,120]
[391934493,1761007694724,647.98,0.00029499,120]
[391934499,1761007831505,-115.69264124,0.00013699,2]
[391934501,1761007831515,-150.0,0.00014134,2]
[391934502,1761007831524,-2352.24,0.00014181,2]
[391934503,1761007831533,-250.0,0.00014213,2]
[391934504,1761007831543,-200.0,0.00014324,2]
[391934505,1761007831559,-267.0,0.00014467,2]
[391934506,1761007831568,-267.0,0.00014548,2]
[391934507,1761007831577,-267.0,0.00014565,2]
[391934508,1761007831586,-267.0,0.00014685,2]
[391934509,1761007831595,-267.0,0.00014784,2]
[391934510,1761007831604,-267.0,0.00014856,2]
[391934511,1761007831613,-687.0,0.00014899,2]
[391934512,1761007831622,-4684.85118493,0.000149,2]
[391934513,1761007831631,-1903.21848942,0.000149,2]
[391934514,1761007831640,-165.76687382,0.000149,2]
[391934515,1761007831649,-217.14332983,0.00014973,2]
[391934516,1761007831658,-500.0,0.00014973,2]
[391934517,1761007831667,-504.40191595,0.00014973,2]
[391934518,1761007831677,-500.0,0.00014973,2]
[391934519,1761007831686,-500.0,0.00014973,2]
[391934520,1761007831695,-500.98237208,0.00014973,2]
[391934521,1761007831704,-500.0,0.00014973,2]
[391934522,1761007831716,-502.12182385,0.00014973,2]
[391934523,1761007831725,-521.56570684,0.00014973,2]
[391934524,1761007831735,-145.75796189,0.00014973,2]
[391934525,1761007831749,-354.24203811,0.00014973,2]
[391934526,1761007831759,-426.87945168,0.00014973,2]
[391934527,1761007831790,-73.12054832,0.00014973,2]
[391934528,1761007831800,-151.0,0.00014991,2]
[391934529,1761007831809,-65.88399248,0.00014997,2]
[391934547,1761007837520,-85.11600752,0.00014997,2]
[391934548,1761007837530,-648.73156143,0.00014998,2]
[391934774,1761007839739,-82.11843857,0.00014998,2]
[391934777,1761007839753,-530.89594702,0.00014999,2]
[391934781,1761007839762,-218.82127059,0.00014999,2]
[391934784,1761007839771,-500.0,0.00014999,2]
[391934786,1761007839781,-500.0,0.00014999,2]
[391934790,1761007839790,-212.59973743,0.00014999,2]
[391934792,1761007839800,-216.32546486,0.00014999,2]
[391934795,1761007839811,-500.0,0.00014999,2]
[391934798,1761007839821,-362.18183946,0.00014999,2]
[391934801,1761007839830,-404.44763023,0.00014999,2]
[391934809,1761007839864,-95.55236977,0.00014999,2]
[391934812,1761007839873,-500.0,0.00014999,2]
[391934815,1761007839882,-500.0,0.00014999,2]
[391934818,1761007839892,-501.41929759,0.00014999,2]
[391934821,1761007839901,-500.0,0.00014999,2]
[391934824,1761007839912,-503.23186723,0.00014999,2]
[391934827,1761007839922,-647.98,0.00014999,2]
[391934830,1761007839931,-647.98,0.00014999,2]
[391934833,1761007839941,-647.98,0.00014999,2]
[391934836,1761007839951,-647.98,0.00014999,2]
[391934839,1761007839960,-500.0,0.00014999,2]
[391934842,1761007839970,-500.0,0.00014999,2]
[391934845,1761007839980,-500.0,0.00014999,2]
[391934848,1761007839988,-500.0,0.00014999,2]
[391934851,1761007839998,-500.0,0.00014999,2]
[391934854,1761007840007,-601.50610832,0.00014999,2]
[391934883,1761007840155,-500.0,0.00014999,2]
[391934885,1761007840164,-500.0,0.00014999,2]
[391934887,1761007840174,-500.0,0.00014999,2]
[391934889,1761007840183,-500.0,0.00014999,2]
[391934891,1761007840192,-643.39424321,0.00014999,2]
[391934893,1761007840201,-500.0,0.00014999,2]
[391934896,1761007840210,-500.0,0.00014999,2]
[391934899,1761007840220,-500.0,0.00014999,2]
[391934902,1761007840229,-500.0,0.00014999,2]
[391934905,1761007840238,-500.0,0.00014999,2]
[391934908,1761007840247,-500.0,0.00014999,2]
[391934911,1761007840257,-500.0,0.00014999,2]
[391934914,1761007840266,-500.0,0.00014999,2]
[391934917,1761007840275,-500.0,0.00014999,2]
[391934920,1761007840284,-500.0,0.00014999,2]
[391934923,1761007840293,-500.0,0.00014999,2]
[391934926,1761007840302,-500.0,0.00014999,2]
[391934929,1761007840311,-500.0,0.00014999,2]
[391934932,1761007840320,-500.0,0.00014999,2]
[391934935,1761007840329,-500.0,0.00014999,2]
[391934938,1761007840338,-500.0,0.00014999,2]
[391934941,1761007840347,-500.0,0.00014999,2]
[391934944,1761007840355,-500.0,0.00014999,2]
[391934947,1761007840364,-440.02478934,0.00014999,2]
[391934950,1761007840373,-500.0,0.00014999,2]
[391934953,1761007840382,-500.0,0.00014999,2]
[391934956,1761007840391,-500.0,0.00014999,2]
[391934959,1761007840399,-81387.56407384,0.00015,2]
[391934982,1761007840495,-353081.89185425,0.00015,2]
[391935437,1761007845892,-297.21031324,0.00014999,2]
[391935438,1761007845904,-202.78968676,0.00014999,2]
[391935439,1761007845915,-250.0,0.00014999,2]
[391935440,1761007845924,-15.3345132,0.00014999,2]
[391935441,1761007845935,-290.58797847,0.00014999,2]
[391935442,1761007845945,-156.10898141,0.00014999,2]
[391935444,1761007857845,597.06,0.00030137,120]
[391935446,1761007953924,512.98,0.00027999,120]
[391935447,1761007954126,512.98,0.00029499,120]
[391935448,1761008171725,500.0,0.00027999,120]
[391935449,1761008172235,500.0,0.00029499,120]
[391935451,1761008425360,500.0,0.00027999,120]
[391935452,1761008425621,500.0,0.00029499,120]
[391935453,1761008494040,155.25,7.083e-05,2]
[391935454,1761008494385,155.25,7.628e-05,2]
[391935455,1761008494501,155.25,8.173e-05,2]
[391935456,1761008494659,155.25,8.718e-05,2]
[391935457,1761008494851,155.25,9.262e-05,2]
[391935458,1761008495111,155.25,9.807e-05,2]
[391935459,1761008495514,155.25,0.00010352,2]
[391935460,1761008495751,155.25,0.00010897,2]
[391935461,1761008495941,155.25,0.00011442,2]
[391935462,1761008496175,155.25,0.00011987,2]
[391935463,1761008496477,155.25,0.00012532,2]
[391935464,1761008496698,155.25,0.00013076,2]
[391935465,1761008566064,815.55948216,0.00030136,120]
[391935467,1761008640560,500.0,0.00027999,120]
[391935468,1761008640935,500.0,0.00029499,120]
[391935469,1761008884955,500.0,0.00029499,120]
[391935470,1761008885241,500.0,0.00030129,120]
[391935473,1761009031713,-155.25,0.00013621,2]
[391935474,1761009031723,-150.0,0.00013952,2]
[391935475,1761009031733,-158.54,0.00013967,2]
[391935476,1761009031743,-167.97270581,0.00014,2]
[391935477,1761009031752,-1508.77,0.00014046,2]
[391935478,1761009031761,-666.0,0.000141,3]
[391935479,1761009031770,-155.25,0.00014166,2]
[391935480,1761009031779,-150.0,0.00014221,2]
[391935481,1761009031789,-49.03249315,0.00014283,2]
[391935482,1761009031890,-2209.79750685,0.00014283,2]
[391935483,1761009031900,-301.33,0.00014446,2]
[391935484,1761009031910,-890.24381675,0.00014609,2]
[391935485,1761009031920,-625.0,0.00014631,2]
[391935486,1761009031931,-625.0,0.00014797,2]
[391935487,1761009031942,-300.0,0.00014848,2]
[391935488,1761009031953,-300.0,0.00014848,2]
[391935489,1761009031962,-1200.0,0.00014848,2]
[391935490,1761009031973,-480.0,0.00014849,2]
[391935491,1761009031983,-1576.96291537,0.0001485,2]
[391935493,1761009031991,-3922.1189,0.000149,2]
[391935495,1761009032000,-2775.1593389,0.000149,2]
[391935497,1761009032009,-174.80622087,0.000149,2]
[391935498,1761009032019,-4719.40813332,0.000149,2]
[391935499,1761009032029,-500.0,0.00014973,2]
[391935500,1761009032038,-271.2537506,0.00014973,2]
[391935501,1761009032048,-500.0,0.00014973,2]
[391935502,1761009032057,-500.0,0.00014973,2]
[391935503,1761009032067,-500.0,0.00014973,2]
[391935504,1761009032076,-500.0,0.00014973,2]
[391935505,1761009032085,-500.0,0.00014973,2]
[391935506,1761009032095,-500.0,0.00014973,2]
[391935507,1761009032105,-500.0,0.00014973,2]
[391935509,1761009032114,-500.0,0.00014973,2]
[391935511,1761009032126,-500.0,0.00014973,2]
[391935513,1761009032136,-500.0,0.00014973,2]
[391935515,1761009032144,-500.0,0.00014973,2]
[391935517,1761009032153,-500.0,0.00014973,2]
[391935519,1761009032163,-609.04,0.00014973,2]
[391935520,1761009032172,-2500.0,0.00014983,2]
[391935521,1761009032183,-414.74025875,0.00014983,2]
[391935522,1761009032192,-150.0,0.00014983,2]
[391935523,1761009032202,-250.0,0.00014983,2]
[391935524,1761009032214,-200.0,0.00014991,2]
[391935525,1761009032224,-200.0,0.00014991,2]
[391935526,1761009032234,-200.0,0.00014991,2]
[391935527,1761009032244,-151.0,0.00014991,2]
[391935528,1761009032254,-151.0,0.00014991,2]
[391935529,1761009032265,-151.0,0.00014991,2]
[391935530,1761009032276,-151.0,0.00014991,2]
[391935531,1761009032285,-151.0,0.00014991,2]
[391935532,1761009032295,-151.0,0.00014991,2]
[391935533,1761009032305,-151.0,0.00014991,2]
[391935534,1761009032315,-151.0,0.00014991,2]
[391935535,1761009032326,-151.0,0.00014991,2]
[391935536,1761009032337,-151.0,0.00014991,2]
[391935537,1761009032348,-151.0,0.00014991,2]
[391935538,1761009032357,-151.0,0.00014997,2]
[391935539,1761009032367,-343.89101859,0.00014999,2]
[391935540,1761009032377,-500.0,0.00014999,2]
[391935541,1761009032386,-320.1561879,0.00014999,2]
[391935542,1761009032396,-500.0,0.00014999,2]
[391935543,1761009032405,-502.548,0.00014999,2]
[391935544,1761009032414,-500.0,0.00014999,2]
[391935545,1761009032424,-500.0,0.00014999,2]
[391935546,1761009032433,-500.0,0.00014999,2]
[391935547,1761009032443,-500.0,0.00014999,2]
[391935548,1761009032452,-500.0,0.00014999,2]
[391935549,1761009032462,-500.0,0.00014999,2]
[391935550,1761009032471,-502.58030001,0.00014999,2]
[391935551,1761009032482,-500.0,0.00014999,2]
[391935552,1761009032492,-500.0,0.00014999,2]
[391935553,1761009032503,-500.0,0.00014999,2]
[391935554,1761009032512,-354.5594112,0.00014999,2]
[391935555,1761009032522,-150.0,0.00014999,2]
[391935556,1761009032532,-500.0,0.00014999,2]
[391935557,1761009032542,-150.0,0.00014999,2]
[391935558,1761009032551,-500.0,0.00014999,2]
[391935559,1761009032560,-150.0,0.00014999,2]
[391935560,1761009032569,-150.0,0.00014999,2]
[391935561,1761009032579,-150.0,0.00014999,2]
[391935562,1761009032588,-150.0,0.00014999,2]
[391935563,1761009032597,-150.0,0.00014999,2]
[391935564,1761009032607,-500.0,0.00014999,2]
[391935565,1761009032616,-500.0,0.00014999,2]
[391935566,1761009032626,-68926.66832669,0.00015,2]
[391935567,1761009032639,-7764.44937422,0.00015,2]
[391935568,1761009032665,-71808.28380066,0.00015,2]
[391935569,1761009032676,-300.0,0.00015,2]
[391935579,1761009037791,-7441.26942533,0.00015,2]
[391935580,1761009037802,-3213.49145779,0.00015,2]
[391935581,1761009037813,-1297.86521788,0.00015,2]
[391935582,1761009037824,-4245.49593759,0.00015,2]
[391935583,1761009037847,-18799.999997,0.00015,2]
[391935770,1761009039732,-1050.0980743,0.00015,2]
[391935782,1761009039836,-193218.82922054,0.00015,2]
[391935794,1761009039944,-2151.87516,0.00015,2]
[391935801,1761009040001,-15511.14999996,0.00015,2]
[391936069,1761009042826,-608.052521,0.00015,2]
[391936070,1761009042935,-806.86483699,0.00015,2]
[391936073,1761009042993,-10170.55997331,0.00015,2]
[391936076,1761009043006,-36646.82288916,0.00015,2]
[391936078,1761009043017,-37870.94239869,0.00015,2]
[391936080,1761009043026,-260.95,0.00015,2]
[391936082,1761009043034,-16188.3289171,0.00015,2]
[391936084,1761009043044,-5386.8060553,0.00015,2]
[391936086,1761009043054,-3133.9962656,0.00015,2]
[391936088,1761009043063,-160.0,0.00015,2]
[391936090,1761009043072,-4499.1175229,0.00015,2]
[391936092,1761009043082,-46785.5740396,0.00015,2]
[391936094,1761009043091,-150.0,0.00015,2]
[391936096,1761009043102,-150.0,0.00015,2]
[391936098,1761009043111,-150.0,0.00015,2]
[391936100,1761009043120,-500.0,0.00015,2]
[391936102,1761009043130,-251.64880541,0.00015,2]
[391936104,1761009043139,-150.0,0.00015,2]
[391936106,1761009043149,-150.0,0.00015,2]
[391936108,1761009043157,-500.0,0.00015,2]
[391936110,1761009043167,-1158.4625489,0.00015,2]
[391936112,1761009043176,-190.60702113,0.00015,2]
[391936114,1761009043185,-151.0,0.00015,2]
[391936116,1761009043194,-4941.4494207,0.00015,2]
[391936118,1761009043203,-232.67179717,0.00015009,2]
[391936120,1761009043213,-500.0,0.00015054,2]
[391936122,1761009043222,-150.0,0.00015054,2]
[391936124,1761009043231,-500.0,0.00015054,2]
[391936126,1761009043240,-150.0,0.00015054,2]
[391936128,1761009043250,-203.89445552,0.00015054,2]
[391936130,1761009043259,-150.0,0.00015054,2]
[391936132,1761009043269,-500.0,0.00015054,2]
[391936135,1761009043279,-500.0,0.00015054,2]
[391936137,1761009043288,-150.0,0.00015055,2]
[391936139,1761009043301,-151.3524603,0.00015055,2]
[391936141,1761009043310,-500.0,0.00015055,2]
[391936143,1761009043318,-150.0,0.00015055,2]
[391936145,1761009043327,-500.0,0.00015055,2]
[391936147,1761009043336,-500.0,0.00015109,2]
[391936149,1761009043345,-150.0,0.00015109,2]
[391936151,1761009043354,-500.0,0.00015109,2]
[391936153,1761009043363,-150.0,0.00015109,2]
[391936155,1761009043372,-150.0,0.00015109,2]
[391936157,1761009043382,-500.0,0.00015109,2]
[391936159,1761009043391,-500.0,0.00015109,2]
[391936161,1761009043400,-500.0,0.0001511,2]
[391936163,1761009043409,-500.0,0.0001511,2]
[391936165,1761009043419,-267.0,0.00015141,2]
[391936167,1761009043428,-267.0,0.00015147,2]
[391936169,1761009043437,-204.68520706,0.00015163,2]
[391936171,1761009043446,-150.0,0.00015163,2]
[391936173,1761009043455,-500.0,0.00015163,2]
[391936175,1761009043464,-150.0,0.00015163,2]
[391936177,1761009043473,-186.00264476,0.00015163,2]
[391936179,1761009043482,-500.0,0.00015163,2]
[391936181,1761009043491,-284.38831943,0.00015163,2]
[391936183,1761009043501,-469.00947068,0.00015164,2]
[391936185,1761009043511,-150.0,0.00015164,2]
[391936187,1761009043520,-168.0,0.00015187,2]
[391936189,1761009043529,-267.0,0.00015194,2]
[391936191,1761009043538,-500.0,0.00015218,2]
[391936193,1761009043547,-500.0,0.00015218,2]
[391936195,1761009043556,-609.04,0.00015247,2]
[391936197,1761009043565,-267.0,0.00015253,2]
[391936199,1761009043574,-267.0,0.00015254,2]
[391936201,1761009043583,-500.0,0.00015273,2]
[391936203,1761009043593,-500.0,0.00015273,2]
[391936205,1761009043602,-166.66,0.00015298,2]
[391936207,1761009043611,-300.0,0.00015322,2]
[391936209,1761009043620,-500.0,0.00015328,2]
[391936211,1761009043629,-500.0,0.00015328,2]
[391936213,1761009043638,-267.0,0.00015335,2]
[391936215,1761009043647,-158.54,0.00015363,2]
[391936217,1761009043655,-267.0,0.00015372,2]
[391936219,1761009043664,-500.0,0.00015383,2]
[391936221,1761009043673,-213.0,0.00015383,2]
[391936223,1761009043682,-625.0,0.0001541,2]
[391936225,1761009043692,-164.22,0.00015422,2]
[391936227,1761009043701,-500.0,0.00015437,2]
[391936229,1761009043710,-168.0,0.00015451,2]
[391936231,1761009043719,-267.0,0.00015492,2]
[391936233,1761009043728,-527.82142994,0.00015492,2]
[391936235,1761009043737,-190.28,0.00015496,2]
[391936237,1761009043748,-625.0,0.00015497,2]
[391936239,1761009043758,-500.0,0.00015521,2]
[391936241,1761009043767,-500.0,0.00015521,2]
[391936243,1761009043776,-609.04,0.00015521,2]
[391936245,1761009043786,-168.0,0.00015532,2]
[391936247,1761009043796,-168.0,0.00015563,2]
[391936249,1761009043805,-166.66,0.0001562,2]
[391936251,1761009043818,-320.34,0.00015633,2]
[391936253,1761009043827,-267.0,0.00015735,2]
[391936255,1761009043841,-267.0,0.00015743,2]
[391936257,1761009043850,-625.0,0.00015759,2]
[391936259,1761009043859,-166.4,0.00015776,2]
[391936261,1761009043868,-625.0,0.00015792,2]
[391936263,1761009043877,-609.04,0.00015795,2]
[391936265,1761009043886,-267.0,0.00015809,2]
[391936267,1761009043895,-267.0,0.00015825,2]
[391936269,1761009043904,-267.0,0.00015856,2]
[391936271,1761009043913,-168.0,0.00015866,2]
[391936273,1761009043923,-1000.0,0.00015921,2]
[391936275,1761009043932,-166.66,0.00015942,2]
[391936277,1761009043941,-267.49337341,0.00016,2]
[391936279,1761009043951,-186.35,0.00016039,2]
[391936281,1761009043960,-609.04,0.00016068,2]
[391936283,1761009043970,-164.22,0.00016092,2]
[391936285,1761009043981,-3292.79,0.00016113,2]
[391936287,1761009043990,-420.0,0.00016253,2]
[391936289,1761009044000,-168.0,0.00016263,2]
[391936291,1761009044010,-166.66,0.00016264,2]
[391936293,1761009044019,-609.07891154,0.00016342,2]
[391936295,1761009044028,-166.66,0.00016586,2]
[391936297,1761009044038,-300.0,0.00016692,2]
[391936298,1761009044047,-186.88,0.00016712,2]
[391936299,1761009044057,-158.54,0.0001676,2]
[391936300,1761009044066,-164.22,0.00016763,2]
[391936301,1761009044076,-166.66,0.00016908,2]
[391936302,1761009044086,-10439.2726281,0.00016912,2]
[391936303,1761009044096,-1102.5864006,0.00016912,2]
[391936304,1761009044105,-1003.8888134,0.00016948,2]
[391936308,1761009044256,-4719.40813328,0.00017045,2]
[391936310,1761009044272,-1201.9588978,0.0001709,2]
[391936312,1761009044281,-3612.1044238,0.00017254,2]
[391936314,1761009044290,-2329.3165733,0.00017338,2]
[391936316,1761009044300,-246.0202801,0.00017338,2]
[391936318,1761009044310,-223.9978717,0.00017382,2]
[391936320,1761009044319,-164.22,0.00017433,2]
[391936322,1761009044329,-268.1932813,0.00017557,2]
[391936324,1761009044339,-152.0,0.00017675,2]
[391936326,1761009044348,-1303.22887885,0.00017675,2]
[391936328,1761009044357,-152.0,0.00017675,2]
[391936330,1761009044366,-151.0,0.00017675,2]
[391936332,1761009044376,-151.0,0.00017675,2]
[391936334,1761009044385,-151.0,0.00017675,2]
[391936336,1761009044395,-151.0,0.00017675,2]
[391936338,1761009044404,-805.9694385,0.00017757,2]
[391936340,1761009044413,-150.0,0.00017773,2]
[391936342,1761009044423,-150.0,0.00017773,2]
[391936344,1761009044432,-200.78287206,0.00017773,2]
[391936345,1761009044441,-150.0,0.00017773,2]
[391936346,1761009044450,-500.0,0.00017773,2]
[391936347,1761009044459,-500.0,0.00017773,2]
[391936349,1761009044468,-150.0,0.00017773,2]
[391936351,1761009044477,-150.0,0.00017773,2]
[391936353,1761009044486,-150.0,0.00017773,2]
[391936354,1761009044495,-587.0,0.00017791,2]
[391936355,1761009044505,-200.0,0.00017805,2]
[391936356,1761009044514,-500.0,0.00017808,2]
[391936357,1761009044524,-150.0,0.00017828,2]
[391936358,1761009044533,-200.0,0.00017828,2]
[391936359,1761009044543,-500.0,0.00017828,2]
[391936360,1761009044552,-500.0,0.00017828,2]
[391936361,1761009044561,-193.34204274,0.00017828,2]
[391936362,1761009044570,-150.0,0.00017828,2]
[391936363,1761009044580,-150.0,0.00017828,2]
[391936364,1761009044589,-500.0,0.00017863,2]
[391936365,1761009044598,-150.0,0.00017883,2]
[391936366,1761009044607,-500.0,0.00017883,2]
[391936367,1761009044616,-500.0,0.00017883,2]
[391936368,1761009044625,-222.9738915,0.00017883,2]
[391936369,1761009044634,-150.0,0.00017883,2]
[391936370,1761009044643,-1000.0,0.00017912,2]
[391936371,1761009044652,-150.0,0.00017918,2]
[391936372,1761009044662,-150.0,0.00017937,2]
[391936373,1761009044671,-200.0,0.00017937,2]
[391936374,1761009044680,-150.0,0.00017937,2]
[391936375,1761009044690,-295.05109304,0.00017992,2]
[391936376,1761009044699,-210.04273586,0.00017992,2]
[391936377,1761009044708,-31306.17953061,0.00018,2]
[391936378,1761009044717,-1176.39478739,0.00018,2]
[391936379,1761009044726,-1758.9926945,0.000181,2]
[391936380,1761009044735,-164.22,0.00018104,2]
[391936381,1761009044744,-158.54,0.00018157,2]
[391936382,1761009044755,-164.22,0.00018774,2]
[391936383,1761009044767,-2811.05908246,0.00019,2]
[391936384,1761009044777,-2296.75624223,0.00019,2]
[391936385,1761009044786,-435.59097052,0.00019,2]
[391936386,1761009044795,-2775.15933882,0.00019189,2]
[391936387,1761009044804,-4719.40813328,0.00019189,2]
[391936388,1761009044814,-164.22,0.00019445,2]
[391936389,1761009044825,-637.0,0.00019474,2]
[391936390,1761009044836,-158.54,0.00019553,2]
[391936391,1761009044847,-153.0,0.00019582,2]
[391936392,1761009044856,-153.0,0.00019582,2]
[391936393,1761009044865,-153.0,0.00019582,2]
[391936394,1761009044875,-153.0,0.00019582,2]
[391936395,1761009044884,-153.0,0.00019582,2]
[391936396,1761009044894,-153.0,0.00019582,2]
[391936397,1761009044905,-153.0,0.00019582,2]
[391936398,1761009044914,-153.0,0.00019582,2]
[391936399,1761009044922,-153.0,0.00019582,2]
[391936400,1761009044932,-153.0,0.00019582,2]
[391936401,1761009044941,-153.0,0.00019582,2]
[391936402,1761009044950,-153.0,0.00019582,2]
[391936403,1761009044959,-153.0,0.00019582,2]
[391936404,1761009044969,-153.0,0.00019582,2]
[391936406,1761009044978,-153.0,0.00019582,2]
[391936408,1761009044987,-1508.77,0.00019665,2]
[391936410,1761009044997,-2000.0,0.000197,2]
[391936412,1761009045006,-29747.09,0.00019726,2]
[391936414,1761009045016,-1000.0,0.00019902,2]
[391936416,1761009045025,-500.0,0.00019973,2]
[391936418,1761009045035,-369.55776704,0.00019973,2]
[391936420,1761009045044,-500.0,0.00019973,2]
[391936421,1761009045053,-500.0,0.00019973,2]
[391936423,1761009045062,-500.0,0.00019973,2]
[391936425,1761009045071,-151.0,0.00019997,2]
[391936426,1761009045080,-500.0,0.00019999,2]
[391936427,1761009045089,-15236.06929487,0.0002,2]
[391936428,1761009045099,-10792.41535937,0.0002,2]
[391936429,1761009045108,-1515.66486252,0.0002,2]
[391936430,1761009045117,-25302.65498276,0.0002,2]
[391936431,1761009045126,-4646.13286253,0.0002,2]
[391936432,1761009045135,-2679.8002936,0.0002,5]
[391936433,1761009045145,-3950.0,0.0002,2]
[391936434,1761009045154,-14797.90603347,0.0002,2]
[391936435,1761009045163,-164.22,0.00020116,2]
[391936436,1761009045172,-312.05,0.00020187,2]
[391936437,1761009045181,-475.93135235,0.00020476,2]
[391936438,1761009045190,-563.41384084,0.00020521,2]
[391936439,1761009045200,-1000.0,0.00020521,2]
[391936440,1761009045209,-501.8511031,0.00020521,2]
[391936441,1761009045219,-622.0,0.00020692,2]
[391936442,1761009045228,-153.0,0.00020771,2]
[391936443,1761009045238,-153.0,0.00020771,2]
[391936444,1761009045248,-153.0,0.00020771,2]
[391936445,1761009045257,-153.0,0.00020771,2]
[391936446,1761009045266,-153.0,0.00020771,2]
[391936447,1761009045275,-153.0,0.00020771,2]
[391936448,1761009045284,-153.0,0.00020771,2]
[391936450,1761009045294,-153.0,0.00020771,2]
[391936452,1761009045304,-153.0,0.00020771,2]
[391936453,1761009045314,-153.0,0.00020771,2]
[391936454,1761009045324,-153.0,0.00020771,2]
[391936455,1761009045333,-153.0,0.00020771,2]
[391936456,1761009045342,-153.0,0.00020771,2]
[391936457,1761009045351,-153.0,0.00020771,2]
[391936458,1761009045362,-153.0,0.00020771,2]
[391936459,1761009045371,-153.0,0.00020771,2]
[391936460,1761009045381,-153.0,0.00020771,2]
[391936461,1761009045390,-153.0,0.00020771,2]
[391936462,1761009045400,-153.0,0.00020771,2]
[391936463,1761009045410,-153.0,0.00020771,2]
[391936464,1761009045420,-153.0,0.00020771,2]
[391936465,1761009045429,-153.0,0.00020771,2]
[391936466,1761009045440,-153.0,0.00020771,2]
[391936467,1761009045449,-153.0,0.00020771,2]
[391936468,1761009045458,-153.0,0.00020771,2]
[391936469,1761009045467,-153.0,0.00020771,2]
[391936470,1761009045476,-153.0,0.00020771,2]
[391936471,1761009045485,-153.0,0.00020771,2]
[391936472,1761009045497,-153.0,0.00020771,2]
[391936473,1761009045505,-153.0,0.00020771,2]
[391936474,1761009045515,-153.0,0.00020771,2]
[391936475,1761009045523,-153.0,0.00020771,2]
[391936476,1761009045533,-153.0,0.00020771,2]
[391936477,1761009045542,-153.0,0.00020771,2]
[391936478,1761009045552,-153.0,0.00020771,2]
[391936479,1761009045561,-153.0,0.00020771,2]
[391936480,1761009045570,-153.0,0.00020771,2]
[391936481,1761009045580,-153.0,0.00020771,2]
[391936482,1761009045590,-153.0,0.00020771,2]
[391936483,1761009045600,-153.0,0.00020771,2]
[391936484,1761009045610,-153.0,0.00020771,2]
[391936485,1761009045619,-153.0,0.00020771,2]
[391936486,1761009045628,-153.0,0.00020771,2]
[391936487,1761009045637,-153.0,0.00020771,2]